Cogmind - Beta 11 X7 @@@ ROGUE MODE // 2021.08.22 @ 16:59:01 Player: PlasticHeart Result: Self-destructed Performance ------------- Evolutions (5) 2500 Regions Visited (20) 4000 Robots Destroyed (235) 1175 Value Destroyed (5895) 5895 Prototype IDs (62) 1240 Alien Tech Used (0) 0 Bonus (691) 691 TOTAL SCORE: 15501 Bonus ------- High Alert Combat Kills 771 Follower Combat Kills 474 Met Data Miner 300 Met Imprinter 300 Was Imprinted 300 Friendly Fire -1454 Cogmind --------- Core Integrity 706/1000 Matter 297/300 Energy 0/100 System Corruption 5% Temperature Cool (0) Movement Flying (22) Location -5/Factory Parts ------- > --- POWER (1) -------- (None) > --- PROPULSION (4) --- Experimental Cesium-ion Thruster Experimental Cesium-ion Thruster > --- UTILITY (10) ----- Small Storage Unit Advanced Sensor Array Advanced Signal Interpreter Makeshift Hacking Suite Deep Network Scanner > --- WEAPON (2) ------- Plasma Lance > --- INVENTORY (8) ---- Cooled VTOL Module Matter Compressor (250) Advanced Weight Redist. System Zionite Weapon Casing Light Regenerative Plating Light Regenerative Plating 01-MTF's Autohacker Plasma Lance Peak State ------------ > --- POWER ------------ Backup Power VII > --- PROPULSION ------- Cooled Cesium-ion Thruster Cooled Cesium-ion Thruster Experimental Cesium-ion Thruster Experimental Cesium-ion Thruster > --- UTILITY ---------- Advanced Power Amplifier Small Storage Unit Improved Trap Scanner Advanced Sensor Array Advanced Signal Interpreter Hacking Suite Makeshift Hacking Suite Deep Network Scanner Ghost Barrier Improved Component Analysis Suite > --- WEAPON ----------- Plasma Lance Plasma Lance > --- INVENTORY -------- Cooled VTOL Module Matter Compressor Advanced Weight Redist. System Light Regenerative Plating Light Regenerative Plating 01-MTF's Autohacker Improved Datajack [Rating: 107] Favorites ----------- Power Backup Power VII Engine Cooled Ion Engine Power Core Backup Power VII Propulsion Light Treads Treads Light Treads Flight Unit Experimental Cesium-ion Thruster Utility Hacking Suite Device Advanced Weight Redist. System Storage Small Storage Unit Processor Improved Signal Interpreter Hackware Hacking Suite Protection Medium Armor Plating Weapon Improved Datajack Energy Gun Spread Laser Energy Cannon Advanced Beam Cannon Ballistic Gun Improved Assault Rifle Ballistic Cannon Improved Light Cannon Launcher Smartbomb Launcher Impact Weapon Powered Hammer Slashing Weapon Scythe Piercing Weapon Plasma Lance Special Melee Weapon Improved Datajack Build | -11 -10 -10 -9 -9 -8 -7 -7 -7 -7 -7 -7 -6 -6 -6 -6 -6 -6 -6 -5 -5 ------- Run | Scr Mat Min Mat Sto Mat Fac Was Fac Low Low Dat Pro Fac Was Fac Low Low Zio Pro Fac Slots Evolved 10 | . . . 2 . 2 2 . . . . . . 2 . . . . . . 2 Power . | . . . . . . . . . . . . . . . . . . . . . Propulsion 2 | . . . 1 . . . . . . . . . . . . . . . . 1 Utility 8 | . . . 1 . 2 2 . . . . . . 2 . . . . . . 1 Weapon . | . . . . . . . . . . . . . . . . . . . . . Parts Attached 242 | 6 6 3 26 30 50 11 1 34 2 . 3 1 12 2 19 3 3 . 7 23 Power 23 | 1 1 1 2 2 3 3 . 3 . . . . 2 . 3 . . . . 2 Engine 9 | 1 1 1 2 2 1 . . . . . . . 1 . . . . . . . Core 14 | . . . . . 2 3 . 3 . . . . 1 . 3 . . . . 2 Reactor . | . . . . . . . . . . . . . . . . . . . . . Propulsion 58 | 2 . . 8 11 11 4 . 10 . . 1 . 3 . 4 . . . . 4 Treads 29 | 2 . . 7 11 9 . . . . . . . . . . . . . . . Leg . | . . . . . . . . . . . . . . . . . . . . . Wheel . | . . . . . . . . . . . . . . . . . . . . . Hover . | . . . . . . . . . . . . . . . . . . . . . Flight 29 | . . . 1 . 2 4 . 10 . . 1 . 3 . 4 . . . . 4 Utility 74 | 1 2 . 8 5 15 4 . 10 1 . . . 7 . 7 . . . 1 13 Device 29 | . . . 1 3 7 . . 5 . . . . 1 . 3 . . . . 9 Storage 9 | 1 1 . 4 . . 1 . . . . . . . . 1 . . . . 1 Processor 7 | . . . . . 1 1 . 3 1 . . . . . 1 . . . . . Hackware 12 | . . . . . 1 2 . 2 . . . . 5 . 1 . . . 1 . Protection 17 | . 1 . 3 2 6 . . . . . . . 1 . 1 . . . . 3 Artifact . | . . . . . . . . . . . . . . . . . . . . . Weapon 87 | 2 3 2 8 12 21 . 1 11 1 . 2 1 . 2 5 3 3 . 6 4 Energy Gun 7 | . . . . 6 . . 1 . . . . . . . . . . . . . Energy Cannon 12 | . 2 . 5 2 3 . . . . . . . . . . . . . . . Ballistic Gun 16 | 2 . 1 1 2 10 . . . . . . . . . . . . . . . Ballistic Cannon 1 | . . . 1 . . . . . . . . . . . . . . . . . Launcher 12 | . 1 1 1 2 3 . . . . . . . . . . 1 1 . 2 . Special Weapon . | . . . . . . . . . . . . . . . . . . . . . Impact Weapon 1 | . . . . . . . . 1 . . . . . . . . . . . . Slashing Weapon 10 | . . . . . 4 . . 4 . . 1 . . 1 . . . . . . Piercing Weapon 13 | . . . . . . . . 2 1 . . . . 1 3 1 1 . 2 2 Special Melee Weapon 15 | . . . . . 1 . . 4 . . 1 1 . . 2 1 1 . 2 2 Unidentified Prototypes 10 | . . . 3 4 1 . . . . . . . . 1 . . . . . 1 Parts Lost 42 | . 1 . 1 2 14 2 2 11 . . . . 1 . . . . . . 8 Power 6 | . 1 . 1 . 2 . . . . . . . . . . . . . . 2 Propulsion 11 | . . . . . 4 1 . 4 . . . . . . . . . . . 2 Utility 20 | . . . . 2 7 . 1 6 . . . . 1 . . . . . . 3 Weapon 5 | . . . . . 1 1 1 1 . . . . . . . . . . . 1 Highest Loss Streak 8 | . 1 . 1 1 5 2 2 6 . . . . 1 . . . . . . 8 Average Slot Usage (%) 96 | . 99 100 96 98 90 92 96 91 92 100 100 100 100 100 99 96 98 100 98 98 Engine 4 | . 13 14 8 11 5 . . . . . . . 1 . . . . . . . Core 3 | . . . . . 2 7 7 6 7 7 7 7 4 6 5 6 6 6 6 4 Treads 13 | . 28 28 33 32 25 . . . . . . . . . . . . . . . Flight 11 | . . . . . . 18 23 22 23 23 23 23 20 20 20 20 20 20 20 22 Device 12 | . . . 4 11 19 15 15 14 15 15 15 15 13 13 13 20 20 20 20 18 Storage 8 | . 14 14 11 11 9 7 7 7 7 7 7 7 6 6 5 6 6 6 6 5 Processor 5 | . . . . . . 7 7 12 15 23 23 23 11 6 6 6 6 6 6 5 Hackware 11 | . . . . . . 23 23 12 7 7 7 7 25 26 32 26 26 26 26 22 Protection 5 | . 13 14 17 10 9 . . . . . . . 1 6 . . . . . 3 Energy Gun 1 | . . . . 7 . . 4 . . . . . . . . . . . . . Energy Cannon 3 | . 5 14 13 8 1 . . . . . . . . . . . . . . . Ballistic Gun 5 | . 22 13 1 5 16 . . . . . . . . . . . . . . . Slashing Weapon 2 | . . . . . . 7 7 3 7 7 6 7 6 6 3 . . . . . Piercing Weapon 1 | . . . . . . . . 4 6 7 7 6 . . 2 3 4 6 4 5 Special Melee Weapon 2 | . . . . . . 4 . 2 . . . . 6 6 5 3 4 6 4 4 Naked Turns . | . . . . . . . . . . . . . . . . . . . . . Heaviest Build 50 | 11 29 29 50 45 48 16 21 22 16 16 16 16 20 20 20 20 20 15 20 24 Greatest Support 68 | 40 40 40 60 60 68 25 25 25 22 22 22 22 26 26 26 25 25 16 25 25 Greatest Overweight (x) 1 | 1 . . . 1 1 . . 1 . . . . . . . . . . . 1 Average Overweight (x) . | . . . . . . . . . . . . . . . . . . . . . Largest Inventory Capacity 25 | 8 15 15 25 15 15 15 8 8 8 8 8 8 8 8 8 8 8 8 8 8 Average Capacity 11 | 7 13 15 15 15 15 8 8 8 8 8 8 8 8 8 7 8 8 8 8 8 Most Carried 16 | 4 15 15 16 15 15 8 8 8 8 8 8 8 8 8 8 8 8 8 8 8 Average Carried 10 | 1 8 14 14 14 14 7 7 7 7 7 7 7 7 7 7 7 7 6 7 7 Final Capacity 15 | 8 15 15 15 15 15 8 8 8 8 8 8 8 8 8 8 8 8 8 8 8 Final Carried 15 | . 14 15 15 15 7 7 7 7 8 8 8 8 8 8 8 8 8 8 7 8 Class Distribution -------------------- 28% | Wizard-Sprinter 27% | Mutant 18% | Scavenger-Mutant 9% | Hacker-Sprinter 9% | Sprinter 4% | Scavenger-Sprinter Dominant Class ---------------- Mutant | -10/Materials Mutant | -10/Mines Mutant | -9/Materials Scavenger-Mutant | -9/Storage Scavenger-Mutant | -8/Materials Hacker-Sprinter | -7/Factory Hacker-Sprinter | -7/Waste Hacker-Sprinter | -7/Factory Sprinter | -7/Lower Caves Sprinter | -7/Lower Caves Sprinter | -7/Data Miner Sprinter | -6/Proximity Caves Wizard-Sprinter | -6/Factory Wizard-Sprinter | -6/Waste Wizard-Sprinter | -6/Factory Wizard-Sprinter | -6/Lower Caves Wizard-Sprinter | -6/Lower Caves Wizard-Sprinter | -6/Zion Wizard-Sprinter | -5/Proximity Caves Wizard-Sprinter | -5/Factory Resources | -11 -10 -10 -9 -9 -8 -7 -7 -7 -7 -7 -7 -6 -6 -6 -6 -6 -6 -6 -5 -5 ----------- Run | Scr Mat Min Mat Sto Mat Fac Was Fac Low Low Dat Pro Fac Was Fac Low Low Zio Pro Fac Matter Collected 4846 | 222 274 72 432 391 1384 320 . 278 70 . 30 10 90 . 520 158 78 . 310 207 Remotely . | . . . . . . . . . . . . . . . . . . . . . Salvage Created 8194 | . 494 70 1322 1526 2031 307 . 463 67 47 29 . 90 . 802 325 144 . 293 184 Parts 494 | . 45 11 84 92 106 17 . 41 8 1 3 . 9 . 37 12 3 . 15 10 Haulers Intercepted 19 | . 2 . 3 6 3 2 . 2 . . . . . . . . . . 1 . Recyclers Shooed 6 | . . . . 1 1 1 . . . . . . . . 3 . . . . . Parts Field Recycled . | . . . . . . . . . . . . . . . . . . . . . Retrieved Matter . | . . . . . . . . . . . . . . . . . . . . . Parts Self-Destructed 35 | . . . . . . . . . 7 4 . . . . . 9 3 . 12 . Prevented 1 | . . . . . . . . . . . . . . . . . . . 1 . Kills | -11 -10 -10 -9 -9 -8 -7 -7 -7 -7 -7 -7 -6 -6 -6 -6 -6 -6 -6 -5 -5 ------- Run | Scr Mat Min Mat Sto Mat Fac Was Fac Low Low Dat Pro Fac Was Fac Low Low Zio Pro Fac Combat Hostiles Destroyed 131 | . 12 3 19 29 39 . . 4 . . . . . . . 9 3 . 12 1 Melee 5 | . . . . . . . . 4 . . . . . . . . . . . 1 Guns 52 | . 8 . 2 14 28 . . . . . . . . . . . . . . . Cannons 26 | . 1 . 13 10 2 . . . . . . . . . . . . . . . AOE 48 | . 3 3 4 5 9 . . . . . . . . . . 9 3 . 12 . Classes Destroyed 21 | . 6 1 5 1 4 . . 1 2 . . . . . . 1 . . . . Worker 33 | . 1 3 9 2 1 3 . 4 . . . . 1 . 4 . . . . 5 Builder 3 | . . 1 . 2 . . . . . . . . . . . . . . . . Tunneler 5 | . . . 1 . . . . 2 . . . . . . 1 . . . . 1 Hauler 19 | . 2 . 3 6 3 2 . 2 . . . . . . . . . . 1 . Recycler 12 | . . . 3 1 2 1 . 1 . . . . . . 4 . . . . . Minesweeper 1 | . . . . . . . . . 1 . . . . . . . . . . . Mechanic 2 | . . . . . 2 . . . . . . . . . . . . . . . Operator 8 | . 2 . . 2 2 . . 1 . . . . . . 1 . . . . . Drone 1 | . . . . . . . . . . . . . . . . 1 . . . . Watcher 20 | . 1 . 3 2 2 2 . 2 . . . . 2 . 5 . . . . 1 Swarmer 28 | . 6 3 4 2 7 . . . . . . . . . . . . . 6 . Cutter 4 | . . . . . . . . 4 . . . . . . . . . . . . Grunt 60 | . 6 . 8 13 19 . . . . . . . . . . 5 3 . 5 1 Brawler 5 | . . . 1 . 2 . . . . . . . . . . 2 . . . . Duelist 5 | . . . 2 2 1 . . . . . . . . . . . . . . . Protector 1 | . . . . 1 . . . . . . . . . . . . . . . . Sentry 23 | . . . 4 11 7 . . . . . . . . . . . . . 1 . Specialist 1 | . . . . . 1 . . . . . . . . . . . . . . . Hunter 2 | . . . . . 1 . . . . . . . . . . 1 . . . . Heavy 1 | . . . . . 1 . . . . . . . . . . . . . . . Samaritan 2 | . . . . . . . . . 1 1 . . . . . . . . . . Best Kill Streak 18 | . 4 3 18 7 8 3 . 3 1 . 1 . 1 . 5 5 3 . 5 3 Combat Bots Only 13 | . 4 3 13 6 7 . . 3 . . . . . . . 5 3 . 5 1 Max Kills in Single Turn 5 | . 3 2 3 5 4 1 . 1 1 1 1 . 1 . 1 3 2 . 4 1 Gunslinging . | . . . . . . . . . . . . . . . . . . . . . Exploded 4 | . 3 2 2 2 4 . . . . . . . . . . 3 2 . 4 . Melee 1 | . . . . . . . . 1 . . . . . . . . . . . 1 Uniques/NPCs Destroyed 2 | . . . . 1 . . . . . . 1 . . . . . . . . . 01-MTF (-9/Storage) Data Miner (-7/Data Miner) Combat | -11 -10 -10 -9 -9 -8 -7 -7 -7 -7 -7 -7 -6 -6 -6 -6 -6 -6 -6 -5 -5 -------- Run | Scr Mat Min Mat Sto Mat Fac Was Fac Low Low Dat Pro Fac Was Fac Low Low Zio Pro Fac Damage Taken 6908 | . 325 21 660 1208 2693 137 47 650 35 . 140 . . . 123 . . . 24 845 Core 980 | . 24 . 53 46 228 16 . 153 . . 140 . . . 26 . . . . 294 Absorbed by Shields 48 | . . . . 5 . . . 43 . . . . . . . . . . . . Core Remaining (%) 79 | 100 . 90 . 75 58 . . . . . . 55 . . . . . . 96 . Volleys Fired 403 | . 45 7 67 99 146 . 13 . . . . . . . . 8 3 . 15 . Largest 2 | . 2 2 2 2 2 . 1 . . . . . . . . 1 1 . 1 . Hottest 136 | . 80 80 136 136 126 . 65 . . . . . . . . 46 46 . 46 . Shots Fired 720 | . 88 11 118 188 276 . 13 . . . . . . . . 8 3 . 15 . Gun 466 | . 75 4 7 114 253 . 13 . . . . . . . . . . . . . Cannon 206 | . 11 4 105 71 15 . . . . . . . . . . . . . . . Launcher 48 | . 2 3 6 3 8 . . . . . . . . . . 8 3 . 15 . Special . | . . . . . . . . . . . . . . . . . . . . . Kinetic 380 | . 75 4 31 17 253 . . . . . . . . . . . . . . . Thermal 270 | . 11 4 81 168 6 . . . . . . . . . . . . . . . Explosive 48 | . 2 3 6 3 8 . . . . . . . . . . 8 3 . 15 . Electromagnetic 22 | . . . . . 9 . 13 . . . . . . . . . . . . . Robot Hit Streak 25 | . 7 5 8 16 25 . 7 . . . . . . . . . . . . . Robot Miss Streak 7 | . 4 2 3 7 5 . 1 . . . . . . . . . . . . . Penetration Max . | . . . . . . . . . . . . . . . . . . . . . Secondary Targets 7 | . . . . 1 6 . . . . . . . . . . . . . . . Max Gunslinging Chain 1 | . . . . 1 1 . . . . . . . . . . . . . . . Shots Hit Robots 575 | . 48 7 67 136 209 16 11 28 3 1 2 . 4 . 24 . . . 6 13 Core Hits 426 | . 32 7 41 144 102 8 4 16 2 1 1 . 3 . 15 15 6 . 21 8 Critical Kills 3 | . 1 . . . 2 . . . . . . . . . . . . . . . Critical Parts Destroyed 3 | . 1 . . . 2 . . . . . . . . . . . . . . . Critical Strikes 10 | . 2 . 1 . 5 . . . . . . . . . 1 . . . . 1 Destroy 6 | . 2 . . . 4 . . . . . . . . . . . . . . . Blast 1 | . . . 1 . . . . . . . . . . . . . . . . . Corrupt 1 | . . . . . 1 . . . . . . . . . . . . . . . Puncture 2 | . . . . . . . . . . . . . . . 1 . . . . 1 Melee Attacks 378 | . . . . . 3 52 . 90 8 6 29 2 35 . 76 4 1 . 19 53 Impact 3 | . . . . . . . . 3 . . . . . . . . . . . . Slashing 178 | . . . . . 3 51 . 33 5 6 5 . 34 . 41 . . . . . Piercing 190 | . . . . . . . . 54 3 . 23 2 . . 35 4 1 . 16 52 Sneak Attacks 49 | . . . . . . 11 . 11 3 1 2 . 3 . 11 . . . . 7 Combat Hostiles . | . . . . . . . . . . . . . . . . . . . . . Follow-up Attacks 1 | . . . . . . . . 1 . . . . . . . . . . . . Damage Inflicted 20367 | . 709 284 1893 2839 4534 1186 114 1659 317 96 121 . 241 . 2146 1048 289 . 1810 1081 Guns 4806 | . 450 34 53 1298 2959 . 12 . . . . . . . . . . . . . Cannons 2421 | . 139 51 1369 609 253 . . . . . . . . . . . . . . . Explosions 6101 | . 120 199 471 932 1322 . 102 . . . . . . . . 1048 289 . 1618 . Melee 7039 | . . . . . . 1186 . 1659 317 96 121 . 241 . 2146 . . . 192 1081 Ramming . | . . . . . . . . . . . . . . . . . . . . . Kinetic 4029 | . 450 34 367 219 2959 . . . . . . . . . . . . . . . Thermal 3105 | . 139 51 1055 1688 70 . 102 . . . . . . . . . . . . . Explosive 5969 | . 120 199 471 932 1292 . . . . . . . . . . 1048 289 . 1618 . Electromagnetic 225 | . . . . . 213 . 12 . . . . . . . . . . . . . Impact 21 | . . . . . . . . 21 . . . . . . . . . . . . Slashing 2628 | . . . . . . 1186 . 392 203 96 . . 241 . 510 . . . . . Piercing 4390 | . . . . . . . . 1246 114 . 121 . . . 1636 . . . 192 1081 Highest Corruption 5 | . . . . . 1 . . . . . . . . . . . . . . 5 Average Corruption 1 | . . . . . 1 . . . . . . . . . . . . . . 3 Corruption Purged . | . . . . . . . . . . . . . . . . . . . . . Effects 6 | . . . . . 5 . . . . . . . . . . . . . . 1 Message Errors 1 | . . . . . 1 . . . . . . . . . . . . . . . Energy Discharges 3 | . . . . . 2 . . . . . . . . . . . . . . 1 Data Loss (minor) 2 | . . . . . 2 . . . . . . . . . . . . . . . Overload Shots . | . . . . . . . . . . . . . . . . . . . . . Overflow Damage 1554 | . . 3 15 32 43 327 . 203 30 . . . . . 549 . . . 64 288 Projectiles 3 | . . . . . 3 . . . . . . . . . . . . . . . Explosions 146 | . . 3 15 32 40 . . . . . . . . . . . . . 56 . Melee 1405 | . . . . . . 327 . 203 30 . . . . . 549 . . . 8 288 Knockbacks 5 | . . . 5 . . . . . . . . . . . . . . . . . Impact . | . . . . . . . . . . . . . . . . . . . . . Kinetic 3 | . . . 3 . . . . . . . . . . . . . . . . . Secondary 2 | . . . 2 . . . . . . . . . . . . . . . . . Self-Inflicted Damage 299 | . . . 42 210 47 . . . . . . . . . . . . . . . Shots 7 | . . . 2 4 1 . . . . . . . . . . . . . . . Rammed . | . . . . . . . . . . . . . . . . . . . . . Targets Rammed . | . . . . . . . . . . . . . . . . . . . . . Kicked . | . . . . . . . . . . . . . . . . . . . . . Crushed . | . . . . . . . . . . . . . . . . . . . . . Highest Temperature 268 | . 111 18 233 268 44 . 164 . . . 56 . . . . 2 5 . 2 4 Average Temperature 62 | . 50 12 71 67 20 . 71 . . . 32 . . . . 2 2 . 2 2 Received Heat Transfer 1830 | . 141 . 168 405 1008 . . 24 . . 18 . . . 12 . . . . 54 Effects 3 | . . . . 3 . . . . . . . . . . . . . . . . Interference 3 | . . . . 3 . . . . . . . . . . . . . . . . Siege Activations . | . . . . . . . . . . . . . . . . . . . . . Robots Corrupted . | . . . . . . . . . . . . . . . . . . . . . Combat Hostiles . | . . . . . . . . . . . . . . . . . . . . . Parts Fried 2 | . . . . . 2 . . . . . . . . . . . . . . . Impact Corruptions . | . . . . . . . . . . . . . . . . . . . . . Robots Melted . | . . . . . . . . . . . . . . . . . . . . . Combat Hostiles . | . . . . . . . . . . . . . . . . . . . . . Parts Melted 4 | . . . 1 3 . . . . . . . . . . . . . . . . Heat Transferred 5272 | . 296 111 1924 2717 124 . 100 . . . . . . . . . . . . . Parts Sabotaged . | . . . . . . . . . . . . . . . . . . . . . Parts Stolen . | . . . . . . . . . . . . . . . . . . . . . Parts Stripped . | . . . . . . . . . . . . . . . . . . . . . Power Chain Reactions 1 | . . . . . . . 1 . . . . . . . . . . . . . Missiles Intercepted . | . . . . . . . . . . . . . . . . . . . . . Alert | -11 -10 -10 -9 -9 -8 -7 -7 -7 -7 -7 -7 -6 -6 -6 -6 -6 -6 -6 -5 -5 ------- Run | Scr Mat Min Mat Sto Mat Fac Was Fac Low Low Dat Pro Fac Was Fac Low Low Zio Pro Fac Peak Influence 939 | . 172 108 347 939 917 472 125 658 . . . . 450 142 305 . . . . 399 Initial 417 | . . 23 . 146 352 417 105 59 . . . . . 112 99 . . . . 107 Average 331 | . 108 40 53 718 644 237 119 379 . . . . 61 125 108 . . . . 273 Maximum Alert Level 3 | . . . 1 3 3 2 . 2 . . . . 2 . 1 . . . . 1 Low Security (%) 49 | 100 100 100 94 2 . 46 100 27 . . . . 88 100 96 . . . . 22 Level 1 14 | . . . 5 10 8 26 . 22 . . . . 10 . 3 . . . . 77 Level 2 20 | . . . . 23 61 26 . 49 . . . . . . . . . . . . Level 3 15 | . . . . 63 30 . . . . . . . . . . . . . . . Level 4 . | . . . . . . . . . . . . . . . . . . . . . Level 5 . | . . . . . . . . . . . . . . . . . . . . . High Security . | . . . . . . . . . . . . . . . . . . . . . Max Security . | . . . . . . . . . . . . . . . . . . . . . Squads Dispatched 47 | . 3 . 2 5 9 3 . 11 . . . . 3 . 4 . . . . 7 Investigation 10 | . 1 . . 1 2 . . 4 . . . . 1 . . . . . . 1 Extermination 8 | . . . . . . 1 . 2 . . . . 1 . 2 . . . . 2 Reinforcement 23 | . 2 . 2 2 3 2 . 5 . . . . 1 . 2 . . . . 4 Assault 3 | . . . . 2 1 . . . . . . . . . . . . . . . Garrison 3 | . . . . . 3 . . . . . . . . . . . . . . . Intercept . | . . . . . . . . . . . . . . . . . . . . . Construction Impeded 1 | . . . 1 . . . . . . . . . . . . . . . . . Haulers Reinforced 2 | . . . . . . 1 . 1 . . . . . . . . . . . . Active Scanning Responses . | . . . . . . . . . . . . . . . . . . . . . Cargo Convoy Interrupts 1 | . . . . . . . . 1 . . . . . . . . . . . . Stealth | -11 -10 -10 -9 -9 -8 -7 -7 -7 -7 -7 -7 -6 -6 -6 -6 -6 -6 -6 -5 -5 --------- Run | Scr Mat Min Mat Sto Mat Fac Was Fac Low Low Dat Pro Fac Was Fac Low Low Zio Pro Fac Distress Signals 14 | . 1 . 4 3 2 1 . 1 . . . . 1 . . . . . . 1 Communications Jammed . | . . . . . . . . . . . . . . . . . . . . . Distress Signals . | . . . . . . . . . . . . . . . . . . . . . Times Spotted 321 | . 26 3 27 41 59 18 7 27 2 8 4 . 4 5 28 4 5 . 6 47 Peak Tracking Total 19 | . 4 3 7 5 4 8 6 9 3 4 4 . 2 6 4 4 4 . 5 19 Tactical Retreats 54 | . . . 1 2 3 6 . 12 2 4 . . 1 . 9 3 2 . 1 8 Traps | -11 -10 -10 -9 -9 -8 -7 -7 -7 -7 -7 -7 -6 -6 -6 -6 -6 -6 -6 -5 -5 ------- Run | Scr Mat Min Mat Sto Mat Fac Was Fac Low Low Dat Pro Fac Was Fac Low Low Zio Pro Fac Traps Triggered 18 | . 1 . . 2 3 2 . 8 . . . . 1 . . . . . . 1 Indirectly . | . . . . . . . . . . . . . . . . . . . . . Trap Hack Attempts . | . . . . . . . . . . . . . . . . . . . . . Triggered . | . . . . . . . . . . . . . . . . . . . . . Disarmed . | . . . . . . . . . . . . . . . . . . . . . Reprogrammed . | . . . . . . . . . . . . . . . . . . . . . Reused 1 | . . . . . . . . . . 1 . . . . . . . . . . Traps Extracted . | . . . . . . . . . . . . . . . . . . . . . Installed 4 | . . . . . . . . . . 1 . . . . . 3 . . . . Triggered 2 | . . . . . . . . 1 . 1 . . . . . . . . . . Machines | -11 -10 -10 -9 -9 -8 -7 -7 -7 -7 -7 -7 -6 -6 -6 -6 -6 -6 -6 -5 -5 ---------- Run | Scr Mat Min Mat Sto Mat Fac Was Fac Low Low Dat Pro Fac Was Fac Low Low Zio Pro Fac Machines Disabled 24 | . 2 . 3 13 5 . . . . . 1 . . . . . . . . . Max in Single Turn 1 | . 1 . 1 1 1 . . . . . 1 . . . . . . . . . Garrison Access 11 | . . . . 1 . 2 . 2 . . . . 3 . 2 . . . . 1 Machines Sabotaged . | . . . . . . . . . . . . . . . . . . . . . Garrisons Compromised 1 | . . . . . . . . 1 . . . . . . . . . . . . Overloaded Fab Kills . | . . . . . . . . . . . . . . . . . . . . . Fab Network Shutdowns 1 | . . . . . . . . . . . . . 1 . . . . . . . Hacking | -11 -10 -10 -9 -9 -8 -7 -7 -7 -7 -7 -7 -6 -6 -6 -6 -6 -6 -6 -5 -5 --------- Run | Scr Mat Min Mat Sto Mat Fac Was Fac Low Low Dat Pro Fac Was Fac Low Low Zio Pro Fac Machines Accessed 104 | . 6 . 5 9 4 23 . 15 1 . 4 . 14 . 22 . . . . 1 Terminals 70 | . 6 . 5 7 4 15 . 10 . . . . 9 . 14 . . . . . Fabricators 9 | . . . . . . 3 . 1 . . . . 2 . 3 . . . . . Repair Stations 3 | . . . . 1 . . . . . . . . . . 2 . . . . . Recycling Units . | . . . . . . . . . . . . . . . . . . . . . Scanalyzers 4 | . . . . . . 2 . 1 . . . . . . 1 . . . . . Garrison Access 13 | . . . . 1 . 3 . 3 . . . . 3 . 2 . . . . 1 Total Hacks 366 | . 14 . 10 18 11 81 . 49 1 . 23 . 58 . 100 . . . . 1 Successful 242 | . 7 . 8 8 3 52 . 29 1 . 23 . 40 . 70 . . . . 1 Failed 124 | . 7 . 2 10 8 29 . 20 . . . . 18 . 30 . . . . . Catastrophic 16 | . 1 . . 1 4 2 . 3 . . . . 2 . 3 . . . . . Database Lockouts . | . . . . . . . . . . . . . . . . . . . . . Manual 144 | . 3 . 1 1 8 26 . 15 . . . . 24 . 52 . . . . 14 Terminals 257 | . 14 . 10 15 11 61 . 34 . . . . 44 . 68 . . . . . Fabricators 48 | . . . . . . 13 . 7 . . . . 10 . 18 . . . . . Repair Stations 10 | . . . . 2 . . . . . . . . . . 8 . . . . . Recycling Units . | . . . . . . . . . . . . . . . . . . . . . Scanalyzers 10 | . . . . . . 3 . 3 . . . . . . 4 . . . . . Garrison Access 17 | . . . . 1 . 4 . 5 . . . . 4 . 2 . . . . 1 Terminal Hacks 150 | . 7 . 7 5 3 32 . 16 1 . 23 . 23 . 33 . . . . . Record 11 | . . . . . . . . . . . 11 . . . . . . . . . Part Schematic 25 | . . . . . . 6 . 4 . . 5 . 5 . 5 . . . . . Robot Schematic 8 | . . . . 1 . 2 . 1 . . 4 . . . . . . . . . Robot Analysis 2 | . . . . . . . . 1 . . . . 1 . . . . . . . Prototype ID Bank 21 | . . . 2 1 . 2 . 3 . . 3 . 5 . 5 . . . . . Open Door 4 | . . . . 3 . . . . 1 . . . . . . . . . . . Branch Access Points 4 | . . . 1 . . 1 . 1 . . . . . . 1 . . . . . Terminal Index 4 | . . . . . . 1 . 1 . . . . 1 . 1 . . . . . Fabricator Index 3 | . . . . . . 1 . 1 . . . . 1 . . . . . . . Repair Station Index 1 | . . . . . . . . . . . . . . . 1 . . . . . Scanalyzer Index 1 | . . . . . . 1 . . . . . . . . . . . . . . Garrison Index 2 | . . . . . . . . 1 . . . . 1 . . . . . . . Alert Level 7 | . 1 . 1 . 2 2 . . . . . . . . 1 . . . . . Unreport Threat 10 | . . . 1 . 1 4 . . . . . . 1 . 3 . . . . . Locate Traps 25 | . 4 . 1 . . 6 . 3 . . . . 4 . 7 . . . . . Recall Extermination 3 | . . . . . . . . . . . . . 1 . 2 . . . . . Hauler Manifests 5 | . . . 1 . . 2 . . . . . . 1 . 1 . . . . . Zone Layout 14 | . 2 . . . . 4 . . . . . . 2 . 6 . . . . . Fabricator Hacks 30 | . . . . . . 7 . 5 . . . . 7 . 11 . . . . . Network Status 2 | . . . . . . . . . . . . . . . 2 . . . . . Load Schematic 12 | . . . . . . 3 . 2 . . . . 3 . 4 . . . . . Build 16 | . . . . . . 4 . 3 . . . . 4 . 5 . . . . . Repair Station Hacks 9 | . . . . 2 . . . . . . . . . . 7 . . . . . Scan Component 4 | . . . . 1 . . . . . . . . . . 3 . . . . . Repair 4 | . . . . 1 . . . . . . . . . . 3 . . . . . Refit 1 | . . . . . . . . . . . . . . . 1 . . . . . Recycling Unit Hacks . | . . . . . . . . . . . . . . . . . . . . . Scanalyzer 8 | . . . . . . 2 . 2 . . . . . . 4 . . . . . Insert Component 4 | . . . . . . 2 . 1 . . . . . . 1 . . . . . Analyze 4 | . . . . . . . . 1 . . . . . . 3 . . . . . Garrison Access Hacks 11 | . . . . 1 . 2 . 2 . . . . 3 . 2 . . . . 1 Seal Access 11 | . . . . 1 . 2 . 2 . . . . 3 . 2 . . . . 1 Unauthorized Hacks 34 | . . . 1 . . 9 . 4 . . . . 7 . 13 . . . . . Terminals 26 | . . . 1 . . 7 . 3 . . . . 6 . 9 . . . . . Track 10 | . . . . . . 3 . 1 . . . . 3 . 3 . . . . . Assimilate 6 | . . . . . . 2 . . . . . . 1 . 3 . . . . . Botnet 9 | . . . 1 . . 2 . 2 . . . . 2 . 2 . . . . . Disrupt 1 | . . . . . . . . . . . . . . . 1 . . . . . Fabricators 7 | . . . . . . 1 . 1 . . . . 1 . 4 . . . . . Prioritize 6 | . . . . . . 1 . 1 . . . . 1 . 3 . . . . . Siphon 1 | . . . . . . . . . . . . . . . 1 . . . . . Repair Stations . | . . . . . . . . . . . . . . . . . . . . . Recycling Units . | . . . . . . . . . . . . . . . . . . . . . Scanalyzers . | . . . . . . . . . . . . . . . . . . . . . Garrison Access 1 | . . . . . . 1 . . . . . . . . . . . . . . Reprogram 1 | . . . . . . 1 . . . . . . . . . . . . . . Data Cores Recovered 2 | . . . . . 1 . . . . . . . . . 1 . . . . . Used . | . . . . . . . . . . . . . . . . . . . . . Hacking Detections 73 | . 4 . 2 6 4 20 . 13 . . . . 10 . 14 . . . . . Full Trace Events 5 | . . . . . . . . 4 . . . . 1 . . . . . . . Feedback Events 2 | . . . . . . . . 1 . . . . 1 . . . . . . . Hackware Fried 2 | . . . . . . . . 1 . . . . 1 . . . . . . . Feedback Blocked . | . . . . . . . . . . . . . . . . . . . . . Robot Schematics Acquired 12 | . . . . 1 . 2 . 1 . . 4 . . . . . . . . 4 Robots Built . | . . . . . . . . . . . . . . . . . . . . . Matter . | . . . . . . . . . . . . . . . . . . . . . Time . | . . . . . . . . . . . . . . . . . . . . . Total Robot Build Rating . | . . . . . . . . . . . . . . . . . . . . . Part Schematics Acquired 27 | . . . . . . 6 . 5 . . 5 . 5 . 6 . . . . . Parts Built 14 | . . . . . . 2 . 4 . . . . 4 . 4 . . . . . Matter 2835 | . . . . . . 438 . 438 . . . . 760 . 1199 . . . . . Time 969 | . . . . . . 232 . 182 . . . . 183 . 372 . . . . . Total Part Build Rating 63 | . . . . . . 6 . 12 . . . . 20 . 25 . . . . . Parts Repaired 4 | . . . . 1 . . . . . . . . . . 3 . . . . . Time 214 | . . . . 32 . . . . . . . . . . 182 . . . . . Parts Recycled . | . . . . . . . . . . . . . . . . . . . . . Recycled Matter . | . . . . . . . . . . . . . . . . . . . . . Retrieved Matter . | . . . . . . . . . . . . . . . . . . . . . Retrieved Components . | . . . . . . . . . . . . . . . . . . . . . Parts Scanalyzed 2 | . . . . . . . . 1 . . . . . . 1 . . . . . Part Schematics Acquired 2 | . . . . . . . . 1 . . . . . . 1 . . . . . Parts Damaged . | . . . . . . . . . . . . . . . . . . . . . Bothacking | -11 -10 -10 -9 -9 -8 -7 -7 -7 -7 -7 -7 -6 -6 -6 -6 -6 -6 -6 -5 -5 ------------ Run | Scr Mat Min Mat Sto Mat Fac Was Fac Low Low Dat Pro Fac Was Fac Low Low Zio Pro Fac Used RIF Installer . | . . . . . . . . . . . . . . . . . . . . . Robots Hacked 5 | . . . . . . 1 . . . . 1 . 1 . . . . . 1 1 Non-combat 4 | . . . . . . 1 . . . . . . 1 . . . . . 1 1 Combat 1 | . . . . . . . . . . . 1 . . . . . . . . . Robot Hacks Applied 5 | . . . . . . 1 . . . . 1 . 1 . . . . . 1 1 parse_system 1 | . . . . . . . . . . . 1 . . . . . . . . . no_distress 1 | . . . . . . . . . . . . . . . . . . . 1 . find_chute 3 | . . . . . . 1 . . . . . . 1 . . . . . . 1 Relay Couplers Released . | . . . . . . . . . . . . . . . . . . . . . Robots Rewired 1 | . . . . . . . 1 . . . . . . . . . . . . . Allies Hacked . | . . . . . . . . . . . . . . . . . . . . . Hacks Repelled . | . . . . . . . . . . . . . . . . . . . . . Allies | -11 -10 -10 -9 -9 -8 -7 -7 -7 -7 -7 -7 -6 -6 -6 -6 -6 -6 -6 -5 -5 -------- Run | Scr Mat Min Mat Sto Mat Fac Was Fac Low Low Dat Pro Fac Was Fac Low Low Zio Pro Fac Total Allies 20 | . . . . 2 . . 1 3 . . . . 1 . 2 . . 8 . 3 Largest Group 8 | . . . . 2 . . 1 3 3 . . . 1 1 1 1 . 8 8 3 Highest-Rated Group 267 | . . . . 127 . . 141 93 90 . . . 26 26 26 26 . 267 267 210 Highest-Rated Ally 141 | . . . . 100 . . 141 31 31 . . . 26 26 26 26 . 39 39 70 Zionite Dispatches 1 | . . . . . . . . . . . . . . . . . . . . 1 Light 1 | . . . . . . . . . . . . . . . . . . . . 1 Total Orders 1 | . . . . . . . . . . . . . . . 1 . . . . . STAY 1 | . . . . . . . . . . . . . . . 1 . . . . . Ally Attacks 83 | . . . . 10 . . 5 . 19 . . . . . . . . . 25 24 Total Damage 2620 | . . . . 415 . . 244 . 247 . . . . . . . . . 1316 398 Kills 19 | . . . . 6 . . . . 1 . . . . . . . . . 7 5 Allies Corrupted . | . . . . . . . . . . . . . . . . . . . . . Allies Melted . | . . . . . . . . . . . . . . . . . . . . . Intel | -11 -10 -10 -9 -9 -8 -7 -7 -7 -7 -7 -7 -6 -6 -6 -6 -6 -6 -6 -5 -5 ------- Run | Scr Mat Min Mat Sto Mat Fac Was Fac Low Low Dat Pro Fac Was Fac Low Low Zio Pro Fac Robot Analysis Total 2 | . . . . . . . . 1 . . . . 1 . . . . . . . Derelict Logs Recovered 12 | . . 1 . . . . . . 1 2 . 2 . . . . 2 2 2 . Drone Launches . | . . . . . . . . . . . . . . . . . . . . . Drone Recoveries . | . . . . . . . . . . . . . . . . . . . . . Zionite Intel Received 3 | . . . . . . . . . . . . . . . . . . . . 3 Prototype Stockpiles 1 | . . . . . . . . . . . . . . . . . . . . 1 Unaware Schematics 1 | . . . . . . . . . . . . . . . . . . . . 1 Active Garrisons 1 | . . . . . . . . . . . . . . . . . . . . 1 Exploration | -11 -10 -10 -9 -9 -8 -7 -7 -7 -7 -7 -7 -6 -6 -6 -6 -6 -6 -6 -5 -5 ------------- Run | Scr Mat Min Mat Sto Mat Fac Was Fac Low Low Dat Pro Fac Was Fac Low Low Zio Pro Fac Turns Passed 17238 | 41 1231 873 1319 2549 1919 1062 70 1614 320 677 111 200 897 32 1515 494 187 478 604 1045 Spaces Moved 24076 | 29 672 519 641 705 823 2580 123 3083 618 1086 142 662 2072 93 3386 1275 785 1148 1791 1843 Core 18 | 16 . . . . . . . 2 . . . . . . . . . . . . Treads 3372 | 13 672 519 641 705 822 . . . . . . . . . . . . . . . Legs . | . . . . . . . . . . . . . . . . . . . . . Wheels . | . . . . . . . . . . . . . . . . . . . . . Hover . | . . . . . . . . . . . . . . . . . . . . . Flight 20686 | . . . . . 1 2580 123 3081 618 1086 142 662 2072 93 3386 1275 785 1148 1791 1843 Fastest Speed 19 | 50 160 160 160 160 112 29 30 23 29 29 23 23 29 29 22 22 22 22 22 19 Average Speed 45 | 107 160 160 160 164 157 30 30 29 29 29 27 28 29 29 25 22 22 22 22 21 Slowest Speed 260 | 160 160 160 160 260 260 32 30 100 29 29 29 29 29 29 29 22 22 22 22 108 Overloaded Moves 41 | . . . . . . . . 1 . . 26 2 . . . . . . . 12 Propulsion Burnouts . | . . . . . . . . . . . . . . . . . . . . . Robots Hopped 48 | . . . . . . 12 . 2 . . . . 7 . 14 . . . . 13 Cave-ins Triggered . | . . . . . . . . . . . . . . . . . . . . . Exploration Rate (%) 70 | 4 96 90 44 92 54 59 77 57 74 93 81 79 51 78 57 96 80 89 95 27 Regions Visited 20 Branch Regions 10 Pre-discovered Areas 11 | . . 2 . 1 . . . . . 1 1 . . . . . 1 5 . . Known Exits Taken 12 | . . . 1 . 1 . . 1 1 1 1 1 . . 1 1 1 1 1 . Unknown Exits Taken 4 | 1 1 1 . 1 . . . . . . . . . . . . . . . . Scrap Searched 26 | . . 1 . . . . . . 2 4 . 4 . . . 6 2 3 4 . Spaces Dug 214 | . . . . . 3 34 . 41 2 5 . 2 28 . 46 4 1 . 9 39 Terrain Destroyed 758 | . 9 25 21 55 112 34 10 41 2 5 . 2 28 . 46 122 38 . 169 39 Melee 214 | . . . . . 3 34 . 41 2 5 . 2 28 . 46 4 1 . 9 39 Projectile 2 | . . . 2 . . . . . . . . . . . . . . . . . AOE 542 | . 9 25 19 55 109 . 10 . . . . . . . . 118 37 . 160 . Terrain Rammed . | . . . . . . . . . . . . . . . . . . . . . Walls Destroyed . | . . . . . . . . . . . . . . . . . . . . . Machines Disabled . | . . . . . . . . . . . . . . . . . . . . . Actions | -11 -10 -10 -9 -9 -8 -7 -7 -7 -7 -7 -7 -6 -6 -6 -6 -6 -6 -6 -5 -5 --------- Run | Scr Mat Min Mat Sto Mat Fac Was Fac Low Low Dat Pro Fac Was Fac Low Low Zio Pro Fac Total 29136 | 38 745 550 823 1905 1167 2758 142 3661 746 1438 175 666 2310 96 3903 1477 794 1374 1961 2407 Wait 3643 | . 6 20 36 1043 86 93 1 323 117 344 3 . 178 . 413 167 . 221 112 480 Move 23965 | 28 671 518 640 704 822 2558 122 3078 617 1085 141 661 2058 92 3358 1274 784 1147 1790 1817 Hop 45 | . . . . . . 10 . 2 . . . . 7 . 13 . . . . 13 Pick Up 153 | 4 15 1 25 8 23 7 1 13 2 1 2 1 10 1 11 9 . 3 8 8 Fast Attach 76 | 2 2 . 3 7 17 5 . 17 1 . . . 4 . 6 . 2 . 3 7 Attach 55 | 4 1 . 5 2 11 2 1 10 . . . 1 4 . . 3 1 . 3 7 Detach 5 | . . . . . . . . . . . . . 1 . . . 1 . . 3 Swap 111 | . 3 3 18 21 22 4 . 7 1 . 3 . 4 2 13 . . . 1 9 Drop 179 | . 2 1 29 21 37 9 . 18 1 1 2 1 9 1 13 9 2 3 10 10 Fire 403 | . 45 7 67 99 146 . 13 . . . . . . . . 8 3 . 15 . Melee 366 | . . . . . 3 52 . 84 7 6 24 2 35 . 76 4 1 . 19 53 Ram . | . . . . . . . . . . . . . . . . . . . . . Kick . | . . . . . . . . . . . . . . . . . . . . . Crush . | . . . . . . . . . . . . . . . . . . . . . Escape Stasis 127 | . . . . . . 18 . 109 . . . . . . . . . . . . Rewire 4 | . . . . . . . 4 . . . . . . . . . . . . . Trap 4 | . . . . . . . . . . 1 . . . . . 3 . . . . Miscellaneous . | . . . . . . . . . . . . . . . . . . . . . Route ------- -11/Scrapyard -10/Materials (discovered 4 exits: *Mat x3 / [*Min]) -10/Mines (discovered 2 exits: *Mat x2) -9/Materials (discovered 3 exits: *Mat / Min / *Sto) -9/Storage -8/Materials -7/Factory (discovered 4 exits: *Fac x2 / *Low x2) -7/Waste -7/Factory (discovered 4 exits: *Fac x2 / *Low x2) -7/Lower Caves -7/Lower Caves (discovered 2 exits: *Fac / *Dat) -7/Data Miner -6/Proximity Caves -6/Factory (discovered 3 exits: *Fac x2 / *Low) -6/Waste -6/Factory (discovered 5 exits: *Fac / *Low x2 / *Ext x2) -6/Lower Caves -6/Lower Caves (discovered 2 exits: *Fac / *Zio) -6/Zion -5/Proximity Caves -5/Factory History --------- Turn | Location | Event 16 | -11/Scrapyard | Discovered new exit (range 15) 42 | -11/Scrapyard | Entered Materials 224 | -10/Materials | Discovered new exit (range 11) 305 | -10/Materials | Build established: Mutant 415 | -10/Materials | Discovered new exit (range 6) 670 | -10/Materials | Discovered new exit (range 8) 1123 | -10/Materials | Discovered new exit (range 16) 1273 | -10/Materials | Entered Mines 1542 | -10/Mines | Learned location of Storage (-9) 1884 | -10/Mines | Discovered new exit (range 3) 2079 | -10/Mines | Discovered new exit (range 7) 2146 | -10/Mines | Entered Materials 2146 | -9/Materials | Evolved 2 slots: Propulsion x1, Utility x1 2321 | -9/Materials | Identified exit to Mines 2321 | -9/Materials | Identified exit to Storage 3043 | -9/Materials | Discovered new exit (range 6) 3463 | -9/Materials | Destroyed 13 combat bots 3465 | -9/Materials | Entered Storage 3553 | -9/Storage | Learned location of Armory (-4) 4023 | -9/Storage | Repaired Spread Laser 4063 | -9/Storage | Build established: Scavenger-Mutant 4265 | -9/Storage | First assault squad dispatched 4690 | -9/Storage | Met 01-MTF 4880 | -9/Storage | Discovered new exit (range 12) 5998 | -9/Storage | Destroyed 01-MTF 6006 | -9/Storage | Found Prototype Device 6006 | -9/Storage | Identified 01-MTF's Autohacker 6014 | -9/Storage | Entered Materials 6014 | -8/Materials | Evolved 2 slots: Utility x2 6260 | -8/Materials | Destroyed 7 combat bots 6414 | -8/Materials | First assault squad dispatched 6614 | -8/Materials | Build established: Mutant 7087 | -8/Materials | Lost 5 parts (2n3u) 7277 | -8/Materials | Discovered new exit (range 5) 7337 | -8/Materials | Lost 3 parts (1p1n1u) 7571 | -8/Materials | Garrison activated, responded to threat 7903 | -8/Materials | Build established: Scavenger-Mutant 7923 | -8/Materials | Identified exit to Factory 7933 | -8/Materials | Entered Factory 7933 | -7/Factory | Evolved 2 slots: Utility x2 7954 | -7/Factory | Identified exit to Lower Caves 8210 | -7/Factory | Discovered new exit (range 9) 8352 | -7/Factory | Build established: Hacker-Sprinter 8693 | -7/Factory | Discovered new exit (range 3) 8739 | -7/Factory | Fabricated Imp. VTOL Module (x1) 8799 | -7/Factory | Fabricated Imp. VTOL Module (x1) 8995 | -7/Factory | Manually triggered Chute Trap 8995 | -7/Factory | Sucked down chute 8995 | -7/Factory | Entered Waste 9002 | -7/Waste | Spotted C-40 Crusher 9004 | -7/Waste | Spotted C-40 Crusher 9006 | -7/Waste | Spotted C-40 Crusher 9006 | -7/Waste | Spotted C-40 Crusher 9008 | -7/Waste | Spotted C-40 Crusher 9011 | -7/Waste | Spotted C-40 Crusher 9018 | -7/Waste | Discovered new exit (range 11) 9037 | -7/Waste | Identified exit to Factory 9052 | -7/Waste | Rewired C-40 Crusher 9063 | -7/Waste | Crushed by Compactor (1 part destroyed, 1 dropped) 9065 | -7/Waste | Entered Factory 9181 | -7/Factory | Discovered exit to Lower Caves (range 9) 9288 | -7/Factory | Discovered new exit (range 8) 9547 | -7/Factory | Fabricated Imp. Sensor Array (x1) 9673 | -7/Factory | Identified exit to Factory 9770 | -7/Factory | Lost 6 parts (2n3u1w) 9865 | -7/Factory | Fabricated Imp. Sensor Array (x1) 9873 | -7/Factory | Cargo convoy interrupted 9934 | -7/Factory | Fabricated Imp. Signal Interpreter (x2) 10071 | -7/Factory | Build established: Scavenger-Sprinter 10292 | -7/Factory | Hacking Suite fried by hacking feedback 10646 | -7/Factory | Allied Derelicts emerged from ambush trap array 10667 | -7/Factory | Discovered exit to Factory (range 7) 10679 | -7/Factory | Entered Lower Caves 10679 | -7/Lower Caves | Accompanied by 3 allies 10694 | -7/Lower Caves | Build established: Sprinter 10873 | -7/Lower Caves | Encountered a Warlord checkpoint 10874 | -7/Lower Caves | Learned Factory security intel 10954 | -7/Lower Caves | Discovered new exit (range 15) 10970 | -7/Lower Caves | Identified exit to Lower Caves 10999 | -7/Lower Caves | Entered another Lower Caves area 11002 | -7/Lower Caves | Learned Factory security intel 11230 | -7/Lower Caves | Discovered exit to Factory (range 3) 11438 | -7/Lower Caves | Encountered a Warlord checkpoint 11640 | -7/Lower Caves | Discovered new exit (range 6) 11641 | -7/Lower Caves | Identified exit to Data Miner 11676 | -7/Lower Caves | Entered Data Miner 11676 | -7/Data Miner | Discovered new exit (range 6) 11682 | -7/Data Miner | Met Data Miner 11688 | -7/Data Miner | Learned location of Section 7 (-2) 11688 | -7/Data Miner | Acquired the access code to Warlord's prototype stash 11692 | -7/Data Miner | Received God Mode back door access code from Data Miner 11705 | -7/Data Miner | Destroyed Data Miner 11710 | -7/Data Miner | Found Deep Network Scanner 11712 | -7/Data Miner | Found Ghost Barrier 11714 | -7/Data Miner | Data Conduit disabled 11786 | -7/Data Miner | Identified exit to Proximity Caves 11787 | -7/Data Miner | Entered Proximity Caves 11904 | -6/Proximity Caves | Learned Factory non-interactive machine intel 11987 | -6/Proximity Caves | Entered Factory 11987 | -6/Factory | Evolved 2 slots: Utility x2 11989 | -6/Factory | Loaded intel: 217 non-interactive machine locations 12000 | -6/Factory | Discovered new exit (range 13) 12030 | -6/Factory | Identified exit to Lower Caves 12264 | -6/Factory | Build established: Wizard-Sprinter 12432 | -6/Factory | Imp. Hacking Suite fried by hacking feedback 12564 | -6/Factory | Discovered new exit (range 4) 12565 | -6/Factory | Identified exit to Factory 12648 | -6/Factory | Fabricated Imp. System Backup Module (x2) 12688 | -6/Factory | Fabricated Lgt. Regenerative Plating? 12752 | -6/Factory | Fabricated Lgt. Regenerative Plating (x1) 12783 | -6/Factory | Local fabrication network quarantined 12860 | -6/Factory | Discovered exit to Factory (range 15) 12884 | -6/Factory | Manually triggered Chute Trap 12884 | -6/Factory | Sucked down chute 12884 | -6/Factory | Entered Waste 12894 | -6/Waste | Spotted C-40 Crusher 12894 | -6/Waste | Spotted C-40 Crusher 12895 | -6/Waste | 1 allies followed down the chute 12901 | -6/Waste | Spotted C-40 Crusher 12903 | -6/Waste | Spotted C-40 Crusher 12906 | -6/Waste | Spotted C-40 Crusher 12907 | -6/Waste | Spotted C-40 Crusher 12909 | -6/Waste | Discovered new exit (range 14) 12912 | -6/Waste | Identified exit to Factory 12916 | -6/Waste | Entered Factory 13006 | -6/Factory | Identified exit to Extension 13030 | -6/Factory | Discovered exit to Factory (range 15) 13544 | -6/Factory | Repaired Broken Plasma Lance? 13544 | -6/Factory | Fabricated Exp. Cesium-ion Thruster? 13624 | -6/Factory | Fabricated Plasma Lance (x1) 13655 | -6/Factory | Fabricated Exp. Cesium-ion Thruster (x1) 13847 | -6/Factory | Repaired Lgt. Fission Core? 13922 | -6/Factory | Repaired Sml. Storage Unit 14264 | -6/Factory | Fabricated Smartbomb Launcher (x1) 14431 | -6/Factory | Entered Lower Caves 14431 | -6/Lower Caves | Accompanied by 1 ally 14468 | -6/Lower Caves | Spotted B-75 Beast 14603 | -6/Lower Caves | Encountered a Warlord checkpoint 14603 | -6/Lower Caves | Discovered new exit (range 13) 14606 | -6/Lower Caves | Identified exit to Lower Caves 14925 | -6/Lower Caves | Entered another Lower Caves area 14928 | -6/Lower Caves | Discovered exit to Factory (range 3) 14949 | -6/Lower Caves | Learned location of Extension (-6) 15022 | -6/Lower Caves | Discovered new exit (range 4) 15023 | -6/Lower Caves | Identified exit to Zion 15112 | -6/Lower Caves | Entered Zion 15119 | -6/Zion | Discovered new exit (range 14) 15175 | -6/Zion | Gained Derelict followers 15178 | -6/Zion | Learned Factory machine intel 15194 | -6/Zion | Learned location of Warlord (-4) 15241 | -6/Zion | Found CR-A16's Pointy Stick 15245 | -6/Zion | Learned location of Testing (-2) 15253 | -6/Zion | Learned Factory stockpile data 15278 | -6/Zion | Visited the Megawrench Repair Shop 15279 | -6/Zion | Megawrench repaired 3 parts 15326 | -6/Zion | Imprinted 15328 | -6/Zion | Declared Zion's savior 15369 | -6/Zion | Identified exit to Proximity Caves 15590 | -6/Zion | Entered Proximity Caves 15590 | -5/Proximity Caves | Accompanied by 8 allies 15732 | -5/Proximity Caves | Learned Factory terminal intel 16035 | -5/Proximity Caves | Discovered exit to Factory (range 6) 16085 | -5/Proximity Caves | Attracted the attention of an 0b10 checkpoint 16194 | -5/Proximity Caves | Entered Factory 16194 | -5/Factory | Evolved 2 slots: Propulsion x1, Utility x1 16196 | -5/Factory | Loaded intel: 225 machine locations 16197 | -5/Factory | Loaded intel: 20 terminal locations 16441 | -5/Factory | Retrieved Zion intel report: Active Garrisons 16596 | -5/Factory | Retrieved Zion intel report: Prototype Stockpiles 16597 | -5/Factory | Zion Light squad teleported in 16628 | -5/Factory | Found Prototype Protection 16638 | -5/Factory | Identified Zio. Weapon Casing 16924 | -5/Factory | Retrieved Zion intel report: Unaware Schematics 17239 | -5/Factory | Self-destructed Last Messages --------------- 17218_ Cld. Cesium-ion Thruster destroyed. 17218_ Neutrino Core severed. 17219_ Acquired Neutrino Core. 17219_ U-05 Engineer lays Concrete. 17219_ Neutrino Core destroyed. 17219_ Imp. Component Analysis Suite destroyed. 17220_ U-05 Engineer lays Concrete. 17222_ Cld. Cesium-ion Thruster destroyed. 17223_ U-05 Engineer lays Concrete. 17223_ Acquired 17 matter. 17224_ U-05 Engineer lays Concrete. 17225_ Knocked back. 17228_ K-01 Serf knocked back. 17229_ C-30 ARC bursts open, deploying its payload. 17229_ B-60 Warrior unfolds itself. 17229_ G-50 Soldier unfolds itself. 17235_ System corrupted: Energy discharge (-3). 17235_ Penetrated by Slug. 17235_ C-35 Carver destroyed. 17238_ Hacking Suite severed. Map ----- +----------------------------------------------------+ | "" #???????# ## #????????????????? | | "" #???????# "" "" ## """ """ #????????????????? | | "" #???????# "F "" ## """"""" #????????????????? | | "" #???????# """"" ## """%""" ##???????????????? | | "" #???????# ## " ##???????????????? | | #??????####################+###???????????????? | | #??????##????????###??????# #?????????????????? | | #?????????????????????????# #????"?"??????????? | | #??????????????????????#### ##???"G"??????????? | | ###"#?????????????????????# ##????"???????????? | | ???##?????????????????????# #####????????????????? | | ??????????????????????????# #????????????????????? | | ??????????????????????????# #????????????????????? | | ??????????????????????????# #????????????????????? | | ??????????????????????????# #????????????????????? | | ??????????????????????????# #????????????????????? | | ??????????????????????????# #????????????????????? | | ??????????????????????????#k#????????????????????? | | ??????????????????????????#]#????????????????????? | | ?????"?"??????????????????#%#????????????????????? | | ?????"Y"??????????????????#/#????????????????????? | | ?????"""??????????????????# #????????????????????? | | ??????????????????????????# #????????????????????? | | ????????????????????????### ###?????"""""????????? | | ?????????????????######## c #?????"""""????????? | | #????????? @c #?????"""??????????? | | ?? cY #??????????????????? | | #????????? c #??????????????????? | | ???????????############## #??????????????????? | | ????????#???????????????## p ##??????????????????? | | ??????? #????????????????# #???????????????????? | | ####### #????????"""?????+ +?"""???????????????? | | # #????????"Y??????# #?"""???????????????? | | # ####????????"""?????# #?"""???????????????? | | # #???????????????????# #???????????????????? | | # #????????????"""????# #?"""???????????????? | | # #????????????"""????? #?"""??p????????????? | | # #????????????"""????? #?"""??????????"""??? | | # #???????????????????? #??????????????"""??? | | # #???????????????????? #??????????"""???"??? | | # #????????????????????? ????????????"""?"F"??? | | #########??????????????????????????"""?"""??? | | # !#???????????????????????????????????? | | # "" #???????????????????????????????????? | | # "[[ #???????????????????????????????????? | | # "F #???????????????????????????????????? | | # "" #???????????????????????????????????? | | / #???????????????????????????????????? | | #### # #??!????????????????????????????????? | | ???# # """ #???????????????????????????????????? | +----------------------------------------------------+ Best States ------------- Heat Dissipation 50 Energy Generation 23 Energy Capacity 300 Matter Stores 300 Matter Capacity 300 Sight Range 20 Robot Scan Range 16 Terrain Scan Density 10 Power Amplification 30 Additional Mass Support 9 Base Temperature (-) 100 Armor Coverage 450 Resistance: TH 10 Weapon Shielding 100 Evasion (%) 74 Melee Accuracy 8 Recoil Reduction 5 Offensive Hacking 47 Defensive Hacking 30 Item Schematics ----------------- Adv. Terrain Scan Processor | -7/Factory | Hacked Adv. Drone Bay | -7/Factory | Hacked Imp. Launcher Guidance Computer | -7/Factory | Hacked Imp. VTOL Module | -7/Factory | Hacked Rocket Array | -7/Factory | Hacked Imp. Cooling System | -7/Factory | Hacked Imp. Sensor Array | -7/Factory | Hacked Hvy. Phase Cannon | -7/Factory | Hacked Imp. Signal Interpreter | -7/Factory | Hacked Hyp. Gauss Cannon | -7/Factory | Hacked Surge Thruster | -7/Factory | Scanalyzed Combat Drone Bay | -7/Data Miner | Free Lgt. Regenerative Plating | -7/Data Miner | Free Triangulator | -7/Data Miner | Free Exp. Targeting Computer | -7/Data Miner | Free Exp. ECM Suite | -7/Data Miner | Free Smartbomb Launcher | -6/Factory | Hacked Hyp. Mass Driver | -6/Factory | Hacked Imp. Component Analysis Suite | -6/Factory | Hacked Imp. System Backup Module | -6/Factory | Hacked Phase Gun | -6/Factory | Hacked Plasma Lance | -6/Factory | Scanalyzed Imp. Hacking Suite | -6/Factory | Hacked Adv. Trap Extractor | -6/Factory | Hacked Exp. Cesium-ion Thruster | -6/Factory | Hacked Adv. Sensor Array | -6/Factory | Hacked Imp. Remote Shield | -6/Factory | Hacked Robot Schematics ------------------ O-16 Technician | -9/Storage | Hacked A-02 Transporter | -7/Factory | Hacked M-14 Sweeper | -7/Factory | Hacked B-48 Gladiator | -7/Factory | Hacked S-27 Virus | -7/Data Miner | Free I-36 Angel | -7/Data Miner | Free I-47 Archangel | -7/Data Miner | Free G-50 Soldier | -7/Data Miner | Free R-06 Scavenger | -5/Factory | Z-intel T-07 Excavator | -5/Factory | Z-intel A-15 Conveyor | -5/Factory | Z-intel M-22 Extractor | -5/Factory | Z-intel Fabricated ------------ Imp. VTOL Module | x1 | -7/Factory Imp. VTOL Module | x1 | -7/Factory Imp. Sensor Array | x1 | -7/Factory Imp. Sensor Array | x1 | -7/Factory Imp. Signal Interpreter | x2 | -7/Factory Imp. System Backup Module | x2 | -6/Factory Lgt. Regenerative Plating | x1 | -6/Factory Lgt. Regenerative Plating | x1 | -6/Factory Exp. Cesium-ion Thruster | x1 | -6/Factory Plasma Lance | x1 | -6/Factory Exp. Cesium-ion Thruster | x1 | -6/Factory Smartbomb Launcher | x1 | -6/Factory Alien Tech Used ----------------- None Achievements -------------- None Challenges ------------ None Game ------ Seed SpliceDeliveryCasing Manual? 0 Play Time 04:16:31 Cumulative 840.9 hours Start 2021.08.21 @ 18:12:19 End 2021.08.22 @ 16:59:01 Sessions 5 Manual Loads 0 Difficulty Rogue Special Mode None Game No. 440 Rogue 440 Adventurer 0 Explorer 0 Win Type - Total 65 Types 36/5/13/6/1/1/3/0/0 Lore% 88 Gallery% 88 Achievement% 76 Wizard Run 0 Options --------- ASCII 0 Keyboard 0 Movement Mouse Keybinds 0 Fullscreen 0 Font 32/Smallcaps Map View 76x50 Tactical HUD 1 Map Filters NONE Filters NONE Steam 0 RUN: 29031085-141d-424e-a2c6-f1d9e45b0d70